fUSD/lending_fUSD_20260602
["ID","MTS","AMOUNT","RATE_DAILY","PERIOD"]
[423743846,1780366233000,-399.96017131,0.00013601,2]
[423743843,1780366233000,-6149.71323545,0.00013601,2]
[423743844,1780366233000,-867.9396,0.00013601,2]
[423743842,1780366233000,-745.92482998,0.00013601,2]
[423743841,1780366233000,-162.3951216,0.00013601,2]
[423743845,1780366233000,-1755.05929917,0.00013601,2]
[423743839,1780366233000,-150.0,0.00013559,2]
[423743837,1780366233000,-163.64093689,0.00013501,2]
[423743840,1780366233000,-7243.73581239,0.00013599,2]
[423743835,1780366233000,-150.0,0.00013488,2]
[423743834,1780366233000,-150.63514995,0.00013488,2]
[423743832,1780366233000,-150.0,0.00013488,2]
[423743838,1780366233000,-1144.74,0.00013504,2]
[423743836,1780366233000,-150.0,0.00013488,2]
[423743880,1780366240000,-326.39712015,0.00013608,2]
[423743887,1780366240000,-929.0,0.00013647,2]
[423743882,1780366240000,-1233.78672559,0.00013608,2]
[423743892,1780366240000,-344.18895959,0.00013668,2]
[423743878,1780366240000,-2347.87601158,0.00013608,2]
[423743885,1780366240000,-1357.0,0.00013647,2]
[423743881,1780366240000,-1410.0,0.00013608,2]
[423743889,1780366240000,-539.0,0.00013649,2]
[423743883,1780366240000,-150.0,0.0001363,2]
[423743897,1780366240000,-463.52887949,0.00013668,2]
[423743894,1780366240000,-243.9833861,0.00013668,2]
[423743900,1780366240000,-1064.41050994,0.00013668,2]
[423743902,1780366240000,-338.87344356,0.00013698,2]
[423743898,1780366240000,-375.4692725,0.00013668,2]
[423743895,1780366240000,-698.64406167,0.00013668,2]
[423743903,1780366240000,-500.0,0.00013698,2]
[423743879,1780366240000,-7060.92014268,0.00013608,2]
[423743899,1780366240000,-273.1454,0.00013668,2]
[423743901,1780366240000,-161.04623902,0.00013691,2]
[423743893,1780366240000,-642.81365431,0.00013668,2]
[423743874,1780366240000,-500.0,0.00012345,2]
[423743870,1780366240000,-368.63715721,0.00012345,2]
[423743876,1780366240000,-212.71441112,0.00013601,2]
[423743854,1780366240000,-500.0,0.00012345,2]
[423743855,1780366240000,-500.0,0.00012345,2]
[423743856,1780366240000,-500.0,0.00012345,2]
[423743858,1780366240000,-148.77700831,0.00012345,2]
[423743857,1780366240000,-500.0,0.00012345,2]
[423743859,1780366240000,-265.712551,0.00012345,2]
[423743860,1780366240000,-85.51044069,0.00012345,2]
[423743863,1780366240000,-500.0,0.00012345,2]
[423743864,1780366240000,-500.0,0.00012345,2]
[423743862,1780366240000,-500.0,0.00012345,2]
[423743861,1780366240000,-500.0,0.00012345,2]
[423743865,1780366240000,-500.0,0.00012345,2]
[423743866,1780366240000,-265.701738,0.00012345,2]
[423743867,1780366240000,-234.298262,0.00012345,2]
[423743869,1780366240000,-340.92827502,0.00012345,2]
[423743868,1780366240000,-159.07172498,0.00012345,2]
[423743871,1780366240000,-500.0,0.00012345,2]
[423743872,1780366240000,-382.3349774,0.00012345,2]
[423743875,1780366240000,-1493.9999774,0.00013601,2]
[423743873,1780366240000,-117.6650226,0.00012345,2]
[423743904,1780366240000,-500.0,0.00013698,2]
[423743896,1780366240000,-764.8018764,0.00013668,2]
[423743906,1780366240000,-500.0,0.00013698,2]
[423743944,1780366240000,-500.0,0.00013699,2]
[423743941,1780366240000,-500.0,0.00013699,2]
[423743947,1780366240000,-500.0,0.00013699,2]
[423743935,1780366240000,-500.0,0.00013699,2]
[423743958,1780366240000,-500.0,0.00013701,2]
[423743948,1780366240000,-500.0,0.00013699,2]
[423743951,1780366240000,-500.0,0.00013699,2]
[423743959,1780366240000,-500.0,0.00013701,2]
[423743950,1780366240000,-500.0,0.00013699,2]
[423743955,1780366240000,-500.0,0.00013701,2]
[423743953,1780366240000,-500.0,0.00013699,2]
[423743960,1780366240000,-207.5944701,0.00013701,2]
[423743954,1780366240000,-500.0,0.00013699,2]
[423743949,1780366240000,-500.0,0.00013699,2]
[423743957,1780366240000,-500.0,0.00013701,2]
[423743952,1780366240000,-500.0,0.00013699,2]
[423743961,1780366240000,-500.0,0.00013701,2]
[423743962,1780366240000,-500.0,0.00013701,2]
[423743963,1780366240000,-500.0,0.00013701,2]
[423743942,1780366240000,-400.00000001,0.00013699,2]
[423743946,1780366240000,-500.0,0.00013699,2]
[423743905,1780366240000,-500.0,0.00013698,2]
[423743940,1780366240000,-500.0,0.00013699,2]
[423743938,1780366240000,-500.0,0.00013699,2]
[423743909,1780366240000,-999.99,0.00013699,2]
[423743908,1780366240000,-200.0,0.00013699,2]
[423743910,1780366240000,-456.89708117,0.00013699,2]
[423743907,1780366240000,-166.66,0.00013699,2]
[423743911,1780366240000,-4297.40359062,0.00013699,2]
[423743913,1780366240000,-41.35831304,0.00013699,2]
[423743915,1780366240000,-2108.54760472,0.00013699,2]
[423743926,1780366240000,-5473.52,0.00013699,2]
[423743914,1780366240000,-1197.04918976,0.00013699,2]
[423743912,1780366240000,-245.68932821,0.00013699,2]
[423743929,1780366240000,-547.72007045,0.00013699,2]
[423743916,1780366240000,-6653.03489248,0.00013699,2]
[423743937,1780366240000,-500.0,0.00013699,2]
[423743943,1780366240000,-500.0,0.00013699,2]
[423743933,1780366240000,-500.0,0.00013699,2]
[423743945,1780366240000,-500.0,0.00013699,2]
[423743918,1780366240000,-306.89052624,0.00013699,2]
[423743924,1780366240000,-1085.04,0.00013699,2]
[423743931,1780366240000,-500.0,0.00013699,2]
[423743922,1780366240000,-1160.55947376,0.00013699,2]
[423743972,1780366241000,-500.0,0.00013701,2]
[423743967,1780366241000,-500.0,0.00013701,2]
[423743964,1780366241000,-500.0,0.00013701,2]
[423743966,1780366241000,-500.0,0.00013701,2]
[423743965,1780366241000,-500.0,0.00013701,2]
[423743968,1780366241000,-500.0,0.00013701,2]
[423743971,1780366241000,-500.0,0.00013701,2]
[423743969,1780366241000,-500.0,0.00013701,2]
[423743973,1780366241000,-500.0,0.00013701,2]
[423743970,1780366241000,-500.0,0.00013701,2]
[423743974,1780366241000,-1396.6047,0.00013701,2]
[423743975,1780366241000,-1234.0,0.00013701,5]
[423743978,1780366241000,-518.58,0.00013701,2]
[423743977,1780366241000,-186.81,0.00013159,2]
[423743976,1780366241000,-5744.96128569,0.00013701,2]
[423743980,1780366241000,-514.53602507,0.00013701,2]
[423743981,1780366241000,-359.72147329,0.00013701,2]
[423743982,1780366241000,-280.388,0.00013701,2]
[423743979,1780366241000,-69.16945143,0.00013701,2]
[423743983,1780366241000,-2432.08253539,0.00013701,2]
[423743984,1780366241000,-3937.24730703,0.00013701,2]
[423743985,1780366241000,-417.02499036,0.00013701,2]
[423744001,1780366243000,-396.39720214,0.00013701,2]
[423744000,1780366243000,-2766.70849348,0.00013701,2]
[423744005,1780366243000,-6069.0,0.00013668,2]
[423744003,1780366243000,-358.67100006,0.00013701,2]
[423744004,1780366243000,-360.21030202,0.00013701,2]
[423744002,1780366243000,-309.40885631,0.00013701,2]
[423744007,1780366244000,-456.22435701,0.00013701,2]
[423744006,1780366244000,-3188.20852711,0.00013701,2]
[423744028,1780366246000,-1698.364,0.00012632,2]
[423744027,1780366246000,-684.78,0.00012632,2]
[423744026,1780366246000,-2259.65696879,0.00012632,2]
[423744052,1780366260000,-10651.59978039,0.00012632,2]
[423744054,1780366260000,-6759.24216702,0.00012632,2]
[423744053,1780366260000,-922.73921972,0.00012632,2]
[423744051,1780366260000,-6897.55448754,0.00012632,2]
[423744057,1780366260000,-403.96711752,0.00012632,2]
[423744055,1780366260000,-70555.0,0.00012632,2]
[423744058,1780366260000,-45615.88868165,0.00012632,2]
[423744056,1780366260000,-705.12,0.00012632,2]
[423744060,1780366274000,-2814.09353194,0.00012632,2]
[423744062,1780366274000,-223482.88201896,0.00013701,2]
[423744059,1780366274000,-980.28577839,0.00012632,2]
[423744061,1780366274000,-11758.72846704,0.00012632,2]
[423744063,1780366275000,-227.55474399,0.00012506,2]
[423744074,1780366297000,411.21480785,0.00030136,120]
[423744075,1780366313000,-250.0,0.00012569,2]
[423744076,1780366329000,-1208.06854515,0.00012569,2]
[423744077,1780366359000,-152.0,0.00011317,7]
[423744078,1780366361000,-152.0,0.00012569,2]
[423744079,1780366397000,-300.0,0.00012568,2]
[423744080,1780366413000,-44.75034628,0.00012329,2]
[423744081,1780366451000,-115.20256403,0.00012329,2]
[423744082,1780366466000,-178.93547288,0.00012469,2]
[423744083,1780366505000,-1208.06854515,0.00012569,2]
[423744084,1780366519000,-993.4091177,0.00012569,2]
[423744086,1780366535000,-25.09468095,0.00012569,2]
[423744085,1780366535000,-150.0,0.00012417,2]
[423744088,1780366573000,-6897.55448754,0.000125,2]
[423744089,1780366626000,-474.17151549,0.00012469,2]
[423744093,1780366823000,277.44,0.00030082,120]
[423744096,1780366927000,-1000.0,0.00012219,2]
[423744098,1780366942000,-448.72,0.00012229,2]
[423744099,1780366943000,185.28895298,0.0003,120]
[423744101,1780366980000,-150.0,0.00012119,2]
[423744102,1780366998000,-170.54,0.00012162,2]
[423744103,1780367033000,-702.21,0.00012146,2]
[423744104,1780367049000,-241.97,0.00012286,2]
[423744107,1780367049000,-492.14307986,0.000125,2]
[423744106,1780367049000,-1230.41692014,0.00012469,2]
[423744105,1780367049000,-277.44,0.00012329,2]
[423744110,1780367059000,-1249.4763544,0.000125,2]
[423744109,1780367059000,-500.5236456,0.00012469,2]
[423744108,1780367059000,-250.0,0.00012307,2]
[423744116,1780367061000,-256.57811619,0.00012612,2]
[423744115,1780367061000,-500.0,0.00012612,2]
[423744113,1780367061000,-202.98840213,0.00012594,7]
[423744114,1780367061000,-189.69740348,0.00012594,7]
[423744111,1780367061000,-700.7360782,0.000125,2]
[423744112,1780367061000,-150.0,0.00012569,2]
[423744117,1780367062000,-243.42188381,0.00012612,2]
[423744120,1780367062000,-500.0,0.00012612,2]
[423744119,1780367062000,-500.0,0.00012612,2]
[423744121,1780367062000,-256.57811619,0.00012612,2]
[423744118,1780367062000,-500.0,0.00012612,2]
[423744123,1780367063000,-500.0,0.00012612,2]
[423744125,1780367063000,-500.0,0.00012612,2]
[423744124,1780367063000,-500.0,0.00012612,2]
[423744122,1780367063000,-243.42188381,0.00012612,2]
[423744126,1780367064000,-256.57811619,0.00012612,2]
[423744131,1780367065000,-179.32260012,0.00012612,2]
[423744127,1780367065000,-243.42188381,0.00012612,2]
[423744130,1780367065000,-500.0,0.00012612,2]
[423744129,1780367065000,-500.0,0.00012612,2]
[423744128,1780367065000,-577.25551607,0.00012612,2]
[423744143,1780367087000,-320.67739988,0.00012612,2]
[423744145,1780367102000,-178.93547288,0.00012512,2]
[423744146,1780367102000,-321.06452712,0.00012612,2]
[423744150,1780367340000,2000.0,0.00030135,120]
[423744151,1780367423000,-1208.06854515,0.00012278,2]
[423744162,1780367439000,-791.93145485,0.00012278,2]
[423744200,1780367469000,-152.31692416,0.00012396,2]
[423744199,1780367469000,-151.0,0.00012337,2]
[423744197,1780367469000,-151.0,0.00012328,2]
[423744198,1780367469000,-151.0,0.00012336,2]
[423744214,1780367470000,-215.67541492,0.00012953,2]
[423744222,1780367470000,-500.0,0.00013142,2]
[423744223,1780367470000,-500.0,0.00013142,2]
[423744215,1780367470000,-196.75034628,0.00012977,2]
[423744220,1780367470000,-500.0,0.00013142,2]
[423744213,1780367470000,-7337.50053602,0.00012929,2]
[423744217,1780367470000,-150.0,0.00013142,2]
[423744221,1780367470000,-500.0,0.00013142,2]
[423744212,1780367470000,-300.0,0.00012929,2]
[423744206,1780367470000,-54.1772494,0.0001265,2]
[423744208,1780367470000,-605.8,0.0001275,2]
[423744207,1780367470000,-124.75822348,0.0001265,2]
[423744218,1780367470000,-500.0,0.00013142,2]
[423744210,1780367470000,-10607.27,0.00012929,2]
[423744204,1780367470000,-54.5227506,0.00012421,2]
[423744211,1780367470000,-2362.48946398,0.00012929,2]
[423744209,1780367470000,-1200.0,0.00012928,2]
[423744202,1780367470000,-339.88967476,0.000124,2]
[423744203,1780367470000,-96.9272494,0.00012421,2]
[423744201,1780367470000,-47.68307584,0.00012396,2]
[423744205,1780367470000,-271.3,0.00012445,2]
[423744219,1780367470000,-500.0,0.00013142,2]
[423744231,1780367470000,-500.0,0.00013142,2]
[423744225,1780367470000,-500.0,0.00013142,2]
[423744216,1780367470000,-160.0,0.00012977,2]
[423744244,1780367470000,-2500.0,0.00013143,2]
[423744245,1780367470000,-119922.79385889,0.00013143,2]
[423744242,1780367470000,-433.00153923,0.00013142,2]
[423744241,1780367470000,-500.0,0.00013142,2]
[423744243,1780367470000,-1698.364,0.00013143,2]
[423744239,1780367470000,-500.0,0.00013142,2]
[423744237,1780367470000,-500.0,0.00013142,2]
[423744246,1780367470000,-781.95418243,0.00013143,2]
[423744238,1780367470000,-500.0,0.00013142,2]
[423744240,1780367470000,-500.0,0.00013142,2]
[423744236,1780367470000,-500.0,0.00013142,2]
[423744232,1780367470000,-500.0,0.00013142,2]
[423744228,1780367470000,-500.0,0.00013142,2]
[423744229,1780367470000,-500.0,0.00013142,2]
[423744227,1780367470000,-500.0,0.00013142,2]
[423744226,1780367470000,-500.0,0.00013142,2]
[423744230,1780367470000,-500.0,0.00013142,2]
[423744234,1780367470000,-500.0,0.00013142,2]
[423744235,1780367470000,-500.0,0.00013142,2]
[423744233,1780367470000,-500.0,0.00013142,2]
[423744224,1780367470000,-500.0,0.00013142,2]
[423744260,1780367471000,-151.0,0.00013159,2]
[423744273,1780367471000,-793.44,0.000133,2]
[423744262,1780367471000,-151.0,0.00013161,2]
[423744272,1780367471000,-6011.4379773,0.00013245,2]
[423744263,1780367471000,-151.0,0.00013161,2]
[423744268,1780367471000,-151.0,0.00013161,2]
[423744264,1780367471000,-151.0,0.00013161,2]
[423744265,1780367471000,-151.0,0.00013161,2]
[423744255,1780367471000,-151.0,0.00013158,2]
[423744261,1780367471000,-151.0,0.00013159,2]
[423744258,1780367471000,-151.0,0.00013159,2]
[423744247,1780367471000,-706801.06655868,0.00013143,2]
[423744257,1780367471000,-151.82,0.00013159,2]
[423744253,1780367471000,-151.0,0.0001315,2]
[423744256,1780367471000,-151.4,0.00013159,2]
[423744249,1780367471000,-151.0,0.0001315,2]
[423744259,1780367471000,-151.0,0.00013159,2]
[423744250,1780367471000,-151.0,0.0001315,2]
[423744252,1780367471000,-151.0,0.0001315,2]
[423744251,1780367471000,-151.0,0.0001315,2]
[423744248,1780367471000,-6761.69239164,0.00013145,2]
[423744271,1780367471000,-205025.2745508,0.00013243,2]
[423744254,1780367471000,-151.0,0.00013158,2]
[423744270,1780367471000,-500.0,0.00013178,2]
[423744282,1780367471000,-150.0,0.00013488,2]
[423744266,1780367471000,-151.0,0.00013161,2]
[423744267,1780367471000,-158.57,0.00013161,2]
[423744289,1780367471000,-6761.69239164,0.00013535,2]
[423744296,1780367471000,-150.0,0.00013654,2]
[423744294,1780367471000,-500.0,0.00013591,2]
[423744291,1780367471000,-3731.41407631,0.0001357,2]
[423744288,1780367471000,-248.367,0.0001353,2]
[423744295,1780367471000,-633.85,0.00013608,2]
[423744292,1780367471000,-150.0,0.00013571,2]
[423744290,1780367471000,-3437.121,0.00013543,2]
[423744279,1780367471000,-500.0,0.00013414,2]
[423744283,1780367471000,-150.0,0.00013488,2]
[423744287,1780367471000,-250.0,0.00013506,2]
[423744275,1780367471000,-6761.69239164,0.0001334,2]
[423744284,1780367471000,-150.0,0.00013488,2]
[423744269,1780367471000,-151.0,0.00013161,2]
[423744277,1780367471000,-600.0,0.00013356,2]
[423744276,1780367471000,-244.28607554,0.00013356,2]
[423744278,1780367471000,-32615.4109,0.00013401,2]
[423744274,1780367471000,-271.52040935,0.00013334,2]
[423744281,1780367471000,-151.24972356,0.00013488,2]
[423744280,1780367471000,-5595.30244189,0.00013414,2]
[423744293,1780367471000,-5595.30244186,0.00013579,2]
[423744285,1780367471000,-150.0,0.00013488,2]
[423744286,1780367471000,-150.0,0.00013488,2]
[423744342,1780367472000,-150.0,0.00013916,2]
[423744336,1780367472000,-208.97,0.000139,2]
[423744334,1780367472000,-150.0,0.00013862,2]
[423744333,1780367472000,-150.0,0.00013862,2]
[423744330,1780367472000,-2000.0,0.00013813,2]
[423744328,1780367472000,-1357.0,0.00013797,2]
[423744326,1780367472000,-1226.0,0.00013797,2]
[423744331,1780367472000,-150.0,0.00013821,2]
[423744332,1780367472000,-166.66,0.00013836,2]
[423744329,1780367472000,-273.80530066,0.00013801,2]
[423744337,1780367472000,-309.0,0.000139,2]
[423744335,1780367472000,-1832.5,0.000139,2]
[423744347,1780367472000,-151.0,0.00013978,2]
[423744352,1780367472000,-270.25,0.00013981,2]
[423744343,1780367472000,-6761.69239164,0.00013925,2]
[423744346,1780367472000,-151.45,0.00013974,2]
[423744338,1780367472000,-1000.0,0.000139,2]
[423744348,1780367472000,-151.0,0.00013981,2]
[423744341,1780367472000,-5595.30244186,0.00013909,2]
[423744339,1780367472000,-315.0,0.000139,2]
[423744340,1780367472000,-150.0,0.00013904,2]
[423744349,1780367472000,-151.0,0.00013981,2]
[423744351,1780367472000,-151.0,0.00013981,2]
[423744350,1780367472000,-151.0,0.00013981,2]
[423744327,1780367472000,-6069.0,0.00013797,2]
[423744353,1780367472000,-151.0,0.00013981,2]
[423744345,1780367472000,-166.66,0.00013973,2]
[423744325,1780367472000,-525.0,0.00013797,2]
[423744324,1780367472000,-1276.09,0.00013797,2]
[423744318,1780367472000,-500.0,0.00013763,3]
[423744298,1780367472000,-156.0,0.0001368,2]
[423744297,1780367472000,-163.0,0.0001368,2]
[423744299,1780367472000,-500.0,0.00013688,2]
[423744300,1780367472000,-500.0,0.00013698,2]
[423744302,1780367472000,-500.0,0.00013698,2]
[423744304,1780367472000,-200.0,0.00013699,2]
[423744306,1780367472000,-1350.09,0.00013699,2]
[423744303,1780367472000,-151.0,0.00013698,2]
[423744301,1780367472000,-500.0,0.00013698,2]
[423744312,1780367472000,-479.12958939,0.00013744,2]
[423744305,1780367472000,-166.66,0.00013699,2]
[423744307,1780367472000,-150.0,0.00013702,2]
[423744321,1780367472000,-500.0,0.00013796,2]
[423744311,1780367472000,-150.0,0.00013737,2]
[423744310,1780367472000,-6761.69239164,0.0001373,2]
[423744309,1780367472000,-164.0,0.0001372,2]
[423744354,1780367472000,-151.0,0.00013981,2]
[423744314,1780367472000,-500.0,0.00013744,2]
[423744313,1780367472000,-473.31125629,0.00013744,2]
[423744317,1780367472000,-151.0,0.00013754,2]
[423744320,1780367472000,-500.0,0.00013796,2]
[423744319,1780367472000,-500.0,0.00013789,2]
[423744323,1780367472000,-500.0,0.00013796,2]
[423744316,1780367472000,-5595.30244186,0.00013744,2]
[423744322,1780367472000,-195.25194654,0.00013796,2]
[423744315,1780367472000,-500.0,0.00013744,2]
[423744308,1780367472000,-1591.0,0.0001372,2]
[423744359,1780367472000,-218.42,0.00013985,2]
[423744344,1780367472000,-500.0,0.00013962,2]
[423744360,1780367472000,-2000.0,0.00013985,2]
[423744393,1780367472000,-6761.69239164,0.00014315,2]
[423744395,1780367472000,-605.8,0.00014344,2]
[423744386,1780367472000,-500.0,0.00014249,2]
[423744392,1780367472000,-1179.0,0.00014272,5]
[423744389,1780367472000,-282404.07602,0.0001425,2]
[423744390,1780367472000,-250.0,0.0001425,2]
[423744394,1780367472000,-150.0,0.0001432,2]
[423744391,1780367472000,-1500.0,0.0001425,2]
[423744396,1780367472000,-150.0,0.00014344,2]
[423744398,1780367472000,-166.66,0.00014384,2]
[423744400,1780367472000,-150.0,0.00014404,2]
[423744402,1780367472000,-150.0,0.00014487,2]
[423744405,1780367472000,-2807.24392958,0.0001451,2]
[423744403,1780367472000,-500.0,0.0001451,2]
[423744409,1780367472000,-150.0,0.0001457,2]
[423744404,1780367472000,-3954.44846206,0.0001451,2]
[423744406,1780367472000,-150.0,0.00014558,2]
[423744401,1780367472000,-5595.30244186,0.00014405,2]
[423744399,1780367472000,-2016.0,0.000144,2]
[423744408,1780367472000,-303.43960044,0.0001457,2]
[423744407,1780367472000,-5291.86284142,0.0001457,2]
[423744411,1780367472000,-379.40712744,0.00014599,2]
[423744357,1780367472000,-151.0,0.00013983,2]
[423744414,1780367472000,-2383.71519561,0.000146,2]
[423744415,1780367472000,-1646.1408543,0.000146,2]
[423744413,1780367472000,-500.0,0.000146,3]
[423744410,1780367472000,-540.00228339,0.00014599,2]
[423744388,1780367472000,-1107.43731419,0.0001425,2]
[423744387,1780367472000,-500.0,0.00014249,2]
[423744412,1780367472000,-120.59287256,0.00014599,2]
[423744377,1780367472000,-150.0,0.00014237,2]
[423744355,1780367472000,-151.0,0.00013981,2]
[423744358,1780367472000,-2000.0,0.00013985,2]
[423744361,1780367472000,-318.37,0.00013985,2]
[423744370,1780367472000,-166.66,0.0001411,2]
[423744362,1780367472000,-316.2,0.00013985,2]
[423744373,1780367472000,-150.0,0.00014154,2]
[423744364,1780367472000,-250.0,0.00014,2]
[423744363,1780367472000,-150.0,0.00013987,2]
[423744365,1780367472000,-275.0,0.00014027,2]
[423744371,1780367472000,-6761.69239164,0.0001412,2]
[423744356,1780367472000,-151.0,0.00013981,2]
[423744369,1780367472000,-161.1842386,0.00014081,2]
[423744372,1780367472000,-150.0,0.0001413,2]
[423744366,1780367472000,-219.31042022,0.00014062,2]
[423744368,1780367472000,-5595.30244186,0.00014074,2]
[423744367,1780367472000,-150.0,0.0001407,2]
[423744380,1780367472000,-5595.30244186,0.0001424,2]
[423744384,1780367472000,-500.0,0.00014249,2]
[423744382,1780367472000,-166.66,0.00014247,2]
[423744375,1780367472000,-1680.0,0.00014221,2]
[423744385,1780367472000,-500.0,0.00014249,2]
[423744381,1780367472000,-255.0,0.00014246,2]
[423744379,1780367472000,-150.0,0.00014237,2]
[423744383,1780367472000,-151.0,0.00014247,2]
[423744374,1780367472000,-200.0,0.00014171,2]
[423744397,1780367472000,-880.0,0.00014354,5]
[423744378,1780367472000,-150.0,0.00014237,2]
[423744376,1780367472000,-500.0,0.00014236,2]
[423744423,1780367473000,-151.0,0.00013159,2]
[423744424,1780367473000,-670.37599291,0.000146,2]
[423744422,1780367473000,-670.23,0.000146,2]
[423744419,1780367473000,-889.67485946,0.000146,2]
[423744418,1780367473000,-714.99199765,0.000146,2]
[423744417,1780367473000,-641.741927,0.00013142,2]
[423744416,1780367473000,-215.67541492,0.00012977,2]
[423744420,1780367473000,-702.22699903,0.000146,2]
[423744421,1780367473000,-254.48153201,0.000146,2]
[423744426,1780367474000,-847.45126631,0.000146,2]
[423744425,1780367474000,-388.88096814,0.000146,2]
[423744428,1780367474000,1011.50677596,0.00012266,2]
[423744429,1780367474000,1208.06854515,0.00012266,2]
[423744427,1780367474000,196.56176919,0.00012575,7]
[423744430,1780367474000,-151.0,0.00012266,2]
[423744432,1780367494000,-150.0,0.00012064,2]
[423744434,1780367510000,-227.55474399,0.00012144,2]
[423744436,1780367547000,-152.0,0.00011281,7]
[423744439,1780367563000,712.9,0.000301,120]
[423744438,1780367563000,-1038.97088689,0.00012266,2]
[423744444,1780367896000,154.0,0.0003,120]
[423744445,1780368014000,-143.53467889,0.00012206,2]
[423744446,1780368030000,-718.49532111,0.00012206,2]
[423744447,1780368047000,-178.93547288,0.00012163,2]
[423744449,1780368099000,-702.21,0.00012148,2]
[423744451,1780368145000,-1000.0,0.00012227,2]
[423744452,1780368190000,-1208.06854515,0.00012134,2]
[423744453,1780368207000,-791.93145485,0.00012134,2]
[423744455,1780368414000,1707.0,0.00030137,120]
[423744457,1780368460000,-241.97,0.00011896,2]
[423744459,1780368475000,-520.29947194,0.00012175,2]
[423744458,1780368475000,1668.0,0.00030137,120]
[423744460,1780368514000,-448.72,0.00011907,2]
[423744461,1780368529000,-250.0,0.00012199,2]
[423744463,1780368541000,184.96,0.00030082,120]
[423744462,1780368541000,2000.0,0.00030136,120]
[423744464,1780368567000,-178.93547288,0.0001222,2]
[423744465,1780368582000,-150.0,0.00012263,2]
[423744466,1780368620000,-200.0,0.00012263,2]
[423744472,1780368636000,-500.0,0.00012319,2]
[423744491,1780368637000,-65.88258065,0.00012606,2]
[423744487,1780368637000,-167.13,0.00012565,2]
[423744485,1780368637000,-500.0,0.00012464,2]
[423744483,1780368637000,-85.01529453,0.00012454,2]
[423744479,1780368637000,-184.96,0.00012329,2]
[423744482,1780368637000,-151.0,0.00012339,2]
[423744481,1780368637000,-159.9529103,0.00012329,2]
[423744492,1780368637000,-500.0,0.00012606,2]
[423744480,1780368637000,-159.95291031,0.00012329,2]
[423744484,1780368637000,-143.93470547,0.00012454,2]
[423744490,1780368637000,-434.11741935,0.00012606,2]
[423744478,1780368637000,-170.54,0.0001232,2]
[423744489,1780368637000,-159.9529103,0.00012575,2]
[423744503,1780368637000,-384.07112075,0.00012892,2]
[423744502,1780368637000,-271.52040935,0.00012869,2]
[423744501,1780368637000,-156.78,0.00012846,2]
[423744500,1780368637000,-228.95,0.00012766,2]
[423744495,1780368637000,-500.0,0.00012608,2]
[423744493,1780368637000,-494.26139022,0.00012606,2]
[423744499,1780368637000,-500.0,0.00012752,2]
[423744496,1780368637000,-1200.0,0.0001265,2]
[423744494,1780368637000,-3.07175199,0.00012606,2]
[423744498,1780368637000,-59.0084699,0.00012651,2]
[423744497,1780368637000,-100.9915301,0.00012651,2]
[423744514,1780368638000,-12385.49998465,0.00013043,2]
[423744513,1780368638000,-365.14671362,0.00013043,2]
[423744512,1780368638000,-239.29938092,0.00013042,2]
[423744509,1780368638000,-500.0,0.00012896,2]
[423744511,1780368638000,-162.49,0.00013042,2]
[423744508,1780368638000,-1350.09,0.00012893,2]
[423744507,1780368638000,-9999.99,0.00012893,2]
[423744505,1780368638000,-168.697,0.00012892,2]
[423744504,1780368638000,-1060.23387925,0.00012892,2]
[423744515,1780368638000,-207.32653067,0.00013043,2]
[423744510,1780368638000,-500.0,0.0001304,2]